[Event "55th Rubinstein Memorial-C 2019"]
[Site "Polanica-Zdroj"]
[Date "2019.08.21"]
[Round "5.15"]
[White "Koscielny, Edmond"]
[Black "Mytnik, Kinga"]
[Result "1-0"]
[ECO "A02"]
[WhiteElo "1841"]
[BlackElo "1620"]
[Annotator "NA"]
[PlyCount "55"]
[EventDate "2019.08.17"]
[EventType "swiss"]
[EventCountry "POL"]
[SourceTitle "playchess.com"]
[Source "ChessBase"]
[SourceQuality "1"]
[TimeControl "40/5400+30:1800+30"]

1. f4 {[%emt 0:00:00]} Nf6 {[%emt 0:00:00]} 2. Nf3 {[%emt 0:00:00]} g6 {[%emt 0:00:11]} 3. e3 {[%emt 0:00:16]} Bg7 {[%emt 0:00:27]} 4. Be2 {[%emt 0:00:12]} O-O {[%emt 0:00:42]} 5. O-O {[%emt 0:00:10]} d6 {[%emt 0:01:34]} 6. d4 {[%emt 0:03:01] A02: Bird's Opening} Nc6 {[%emt 0:05:46]} (6... Nbd7 7. a4 c5 8. Nc3 cxd4 9. exd4 e6 10. a5 a6 11. Kh1 b5 12. axb6 Nxb6 13. Bd3 {0-1 (56) Schmidt Schaeffer,S (2391)-Sokolov,A (2530) Baden 2014}) 7. c4 {[%emt 0:00:49]} e6 {[%emt 0:11:12]} 8. Nc3 {[%emt 0:00:41]} d5 $146 {[%emt 0:01:54]} ({Predecessor:} 8... Re8 9. e4 b6 10. a3 Na5 11. b4 Nb7 12. e5 {1-0 (30) Roth,J (1802)-Pinnow,K (1671) Berlin 2003}) 9. c5 {[%emt 0:01:44]} Ne4 {[%emt 0:11:50]} 10. Nxe4 {[%emt 0:09:39]} dxe4 {[%emt 0:00:11]} 11. Ng5 {[%emt 0:00:15]} f5 {[%emt 0:02:27]} 12. Bc4 {[%emt 0:01:57]} Qe7 {[%emt 0:03:53]} 13. Qb3 {[%emt 0:09:39]} Re8 {[%emt 0:10:08]} 14. Bd2 {[%emt 0:04:25]} h6 {[%emt 0:08:04]} 15. Nh3 {[%emt 0:07:22]} Nxd4 {[%emt 0:02:19]} 16. exd4 {[%emt 0:02:09]} Bxd4+ {[%emt 0:00:06]} 17. Kh1 {[%emt 0:03:52]} Qxc5 {[%emt 0:02:42]} 18. Rac1 {[%emt 0:00:59]} Qd6 {[%emt 0:03:22]} 19. Rfd1 {[%emt 0:01:08]} c5 {[%emt 0:03:36]} 20. Be3 {[%emt 0:06:29]} a6 {[%emt 0:01:32]} 21. Qa3 {[%emt 0:04:03]} Rd8 {[%emt 0:04:49]} 22. Rc2 {[%emt 0:07:33]} Qc6 {[%emt 0:04:08]} 23. Be2 {[%emt 0:11:00]} b6 {[%emt 0:08:35]} 24. Bxd4 {[%emt 0:03:00]} Bb7 {[%emt 0:02:56]} 25. Be3 {[%emt 0:01:29]} a5 {[%emt 0:01:59]} 26. Rcd2 {[%emt 0:00:47]} Rxd2 {[%emt 0:01:32]} 27. Rxd2 {[%emt 0:00:12]} Qc7 $18 {[%emt 0:01:47]} 28. Qc3 {[%emt 0:00:42]} 1-0

[Event "55th Rubinstein Memorial-C 2019"]
[Site "Polanica-Zdroj"]
[Date "2019.08.21"]
[Round "5.16"]
[White "Wrona, Florian"]
[Black "Mike, Patryk"]
[Result "0-1"]
[ECO "C23"]
[WhiteElo "1606"]
[BlackElo "1840"]
[Annotator "NA"]
[PlyCount "78"]
[EventDate "2019.08.17"]
[EventType "swiss"]
[EventCountry "POL"]
[SourceTitle "playchess.com"]
[Source "ChessBase"]
[SourceQuality "1"]
[TimeControl "40/5400+30:1800+30"]

1. e4 {[%emt 0:00:00]} e5 {[%emt 0:00:00]} 2. Nf3 {[%emt 0:00:00]} Nc6 {[%emt 0:00:02]} 3. Bc4 {[%emt 0:00:00]} Bc5 {[%emt 0:00:36]} 4. c3 {[%emt 0:00:00]} d6 {[%emt 0:00:52]} 5. d4 {[%emt 0:00:58]} exd4 {[%emt 0:01:01]} 6. cxd4 {[%emt 0:00:04]} Bb6 {[%emt 0:01:10]} 7. h3 {[%emt 0:04:25]} Nf6 {[%emt 0:01:28]} 8. Nc3 {[%emt 0:00:52]} O-O {[%emt 0:03:52]} 9. O-O {[%emt 0:01:15]} Nxe4 {[%emt 0:04:10] C56: Two Knights: 4 d4 exd4 5 0-0 Nxe4} 10. Bxf7+ {[%emt 0:03:40]} (10. Nxe4 d5 11. Bg5 Qd7 12. Bb5 dxe4 13. Ne5 Qxd4 14. Nxc6 bxc6 15. Bxc6 Rb8 16. Qc2 Ba6 17. Rfe1 {0-1 (31) Paehtz,E (2452)-Lagno,K (2543) Beijing 2013}) 10... Rxf7 {[%emt 0:02:00]} 11. Nxe4 {[%emt 0:00:07]} h6 {[%emt 0:07:43]} 12. Re1 $146 {[%emt 0:08:46]} ({Predecessor:} 12. Ng3 Qf8 13. Kh2 Bd7 14. Be3 Re8 15. Rc1 Ne7 16. d5 Bxe3 17. fxe3 Nf5 18. Nxf5 Bxf5 19. Qd4 Be4 20. Nd2 c5 21. dxc6 Bxc6 22. Kg1 Rxf1+ 23. Rxf1 Qe7 24. e4 {½-½ (24) Cuellar Elisvan,D (2289)-Estrada Nieto,J (2302) Lima 2013}) 12... Bf5 {[%emt 0:04:39]} 13. Ng3 {[%emt 0:02:33]} Bh7 {[%emt 0:06:35]} 14. a3 {[%emt 0:07:53]} Qd7 {[%emt 0:07:30]} 15. Be3 {[%emt 0:07:50]} Ne7 {[%emt 0:07:30]} 16. a4 {[%emt 0:19:29]} c6 {[%emt 0:07:31]} 17. a5 {[%emt 0:03:13]} Bd8 {[%emt 0:00:30]} 18. Qd2 {[%emt 0:00:30]} Nd5 {[%emt 0:04:53]} 19. b4 {[%emt 0:01:58]} Bf6 {[%emt 0:07:07]} 20. Nh5 {[%emt 0:08:50]} Qf5 {[%emt 0:01:44]} 21. Nxf6+ {[%emt 0:02:10]} Qxf6 {[%emt 0:02:16]} 22. Nh2 {[%emt 0:07:45]} Bf5 {[%emt 0:02:09]} 23. f3 {[%emt 0:03:37]} Re8 {[%emt 0:03:16]} 24. Bf2 {[%emt 0:13:24]} Rfe7 {[%emt 0:00:52]} 25. Ng4 {[%emt 0:04:05]} Bxg4 {[%emt 0:01:47]} 26. hxg4 {[%emt 0:00:11]} Kf7 {[%emt 0:00:45]} 27. a6 {[%emt 0:04:17]} b5 {[%emt 0:02:04]} 28. Rac1 {[%emt 0:00:30]} Rxe1+ {[%emt 0:02:33]} 29. Bxe1 {[%emt 0:00:23]} Rc8 {[%emt 0:00:54]} 30. Bf2 {[%emt 0:03:25]} Qf4 {[%emt 0:00:30]} (30... Ke7 $17) 31. Qe1 $11 {[%emt 0:00:39]} Re8 {[%emt 0:01:10]} 32. Qd1 {[%emt 0:00:28]} Rc8 {[%emt 0:03:55]} 33. g3 {[%emt 0:00:21]} Qf6 {[%emt 0:00:20]} 34. Be1 {[%emt 0:00:39]} Ke7 {[%emt 0:00:23]} 35. Qd3 {[%emt 0:00:31]} Kd7 {[%emt 0:01:05]} 36. Kf2 {[%emt 0:00:29]} Ne7 {[%emt 0:05:17]} 37. Bd2 {[%emt 0:00:31]} Qg6 {[%emt 0:00:19]} (37... Rd8 $17) 38. Qb3 $17 {[%emt 0:00:30]} (38. Qxg6 $11 {keeps the balance.} Nxg6 39. g5) 38... Rf8 {[%emt 0:01:23]} 39. Kg2 {[%emt 0:00:26]} Nd5 0-1

[Event "55th Rubinstein Memorial-C 2019"]
[Site "Polanica-Zdroj"]
[Date "2019.08.21"]
[Round "5.17"]
[White "Wierzbicki, Dawid"]
[Black "Sypien, Natan"]
[Result "0-1"]
[ECO "C50"]
[WhiteElo "1598"]
[BlackElo "1819"]
[Annotator "NA"]
[PlyCount "74"]
[EventDate "2019.08.17"]
[EventType "swiss"]
[EventCountry "POL"]
[SourceTitle "playchess.com"]
[Source "ChessBase"]
[SourceQuality "1"]
[TimeControl "40/5400+30:1800+30"]

1. e4 {[%emt 0:00:00]} e5 {[%emt 0:00:00]} 2. Nf3 {[%emt 0:00:00]} Nc6 {[%emt 0:00:00]} 3. Bc4 {[%emt 0:00:00]} Nf6 {[%emt 0:00:00]} 4. d3 {[%emt 0:00:00]} Bc5 {[%emt 0:00:00]} 5. O-O {[%emt 0:00:05]} O-O {[%emt 0:00:00]} 6. c3 {[%emt 0:00:05]} d5 {[%emt 0:00:00]} 7. exd5 {[%emt 0:00:04]} Nxd5 {[%emt 0:00:00]} 8. Re1 {[%emt 0:00:42]} Bg4 {[%emt 0:01:42]} 9. h3 {[%emt 0:04:01]} Bh5 {[%emt 0:00:03]} 10. Nbd2 {[%emt 0:01:16]} Nb6 {[%emt 0:01:15]} 11. Bb5 {[%emt 0:03:43]} Bd6 {[%emt 0:04:31]} 12. Qc2 $146 {[%emt 0:00:50] C55: Two Knights: 4 d3, 4 d4 exd4 5 e5 and Max Lange Attack} ({Predecessor:} 12. Ne4 Re8 13. Bg5 f6 14. Be3 a6 15. Bxc6 bxc6 16. Ng3 Bf7 17. c4 Bb4 18. Re2 Bf8 19. b3 c5 {0-1 (89) Nakamura,H (2777)-Grischuk,A (2766) Saint Louis 2018}) 12... Re8 {[%emt 0:08:45]} 13. b3 {[%emt 0:02:33]} a6 {[%emt 0:09:50]} 14. Bxc6 $1 {[%emt 0:00:19]} bxc6 {[%emt 0:00:03]} 15. Bb2 {[%emt 0:00:29]} Nd7 {[%emt 0:21:12]} (15... Nd5 $15) 16. Re3 {[%emt 0:00:53]} f5 {[%emt 0:03:57]} 17. Rae1 c5 18. c4 Qf6 19. Bc3 Re7 20. Qb2 $11 {[%emt 0:08:04]} Rae8 {[%emt 0:15:28]} 21. Qa3 {[%emt 0:01:57]} Nb8 {[%emt 0:03:12]} 22. Qa5 {[%emt 0:02:41]} h6 {[%emt 0:01:19]} 23. a3 {[%emt 0:00:26]} Nc6 {[%emt 0:01:19]} 24. Qxa6 {[%emt 0:01:15]} Nd4 {[%emt 0:00:30]} 25. Bxd4 {[%emt 0:00:30]} cxd4 {[%emt 0:00:30]} 26. R3e2 {[%emt 0:03:34]} e4 27. Qb7 {[%emt 0:00:30]} exf3 {[%emt 0:03:09]} 28. Rxe7 {[%emt 0:00:25]} Rxe7 {[%emt 0:00:06]} 29. Rxe7 {[%emt 0:00:39]} Qxe7 {[%emt 0:00:03]} 30. Nxf3 {[%emt 0:00:06]} Bxf3 {[%emt 0:06:59]} 31. gxf3 {[%emt 0:00:30]} Qg5+ {[%emt 0:01:11]} 32. Kf1 {[%emt 0:00:06]} Qc1+ {[%emt 0:00:15]} 33. Kg2 {[%emt 0:00:05]} Qf4 {[%emt 0:01:00]} 34. Qd5+ {[%emt 0:00:37]} Kh7 {[%emt 0:00:08]} 35. Kf1 {[%emt 0:00:23]} Bxa3 {[%emt 0:01:37]} 36. h4 {[%emt 0:00:25]} Bd6 {[%emt 0:01:02]} 37. Qf7 {[%emt 0:02:23]} Qxf3 {[%emt 0:01:25]} 0-1

[Event "55th Rubinstein Memorial-C 2019"]
[Site "Polanica-Zdroj"]
[Date "2019.08.21"]
[Round "5.18"]
[White "Myrmus, Mateusz"]
[Black "Ciechonski, Piotr"]
[Result "1-0"]
[ECO "B06"]
[WhiteElo "1598"]
[BlackElo "1767"]
[Annotator "NA"]
[PlyCount "69"]
[EventDate "2019.08.17"]
[EventType "swiss"]
[EventCountry "POL"]
[SourceTitle "playchess.com"]
[Source "ChessBase"]
[SourceQuality "1"]
[TimeControl "40/5400+30:1800+30"]

1. e4 {[%emt 0:00:00]} g6 {[%emt 0:00:00]} 2. d4 {[%emt 0:00:00]} Bg7 {[%emt 0:00:00]} 3. Be3 {[%emt 0:00:25]} c5 {[%emt 0:00:14]} 4. c3 {[%emt 0:00:44]} Nf6 {[%emt 0:00:30]} 5. f3 {[%emt 0:02:23]} cxd4 {[%emt 0:02:12]} 6. cxd4 {[%emt 0:00:06]} d5 {[%emt 0:00:40]} 7. e5 {[%emt 0:00:53]} Nfd7 {[%emt 0:00:07]} 8. Nc3 {[%emt 0:00:45]} Qa5 {[%emt 0:01:56]} 9. Qd2 {[%emt 0:01:24]} Nc6 {[%emt 0:02:43]} 10. Bd3 {[%emt 0:01:04]} O-O {[%emt 0:02:18]} 11. Nge2 {[%emt 0:00:10]} Rd8 {[%emt 0:01:45]} 12. Bh6 {[%emt 0:01:24]} Bxh6 {[%emt 0:04:01]} 13. Qxh6 {[%emt 0:00:10]} Qb4 {[%emt 0:00:24]} 14. h4 {[%emt 0:00:51]} Ncxe5 {[%emt 0:10:02]} 15. dxe5 {[%emt 0:01:12]} Nxe5 {[%emt 0:01:02]} 16. O-O-O {[%emt 0:01:05]} Nxd3+ {[%emt 0:00:35]} 17. Rxd3 {[%emt 0:00:12]} Bf5 {[%emt 0:00:13]} 18. Rd4 {[%emt 0:01:02]} Qc5 {[%emt 0:02:31]} 19. g4 {[%emt 0:00:16]} e5 {[%emt 0:00:47]} 20. gxf5 {[%emt 0:00:40]} exd4 {[%emt 0:01:30]} 21. f6 {[%emt 0:00:04]} Qf8 {[%emt 0:00:39]} 22. Qxf8+ {[%emt 0:00:54]} Kxf8 {[%emt 0:00:34]} 23. Nxd4 {[%emt 0:00:03]} Rd6 {[%emt 0:01:29]} 24. h5 {[%emt 0:01:50]} g5 {[%emt 0:05:55]} 25. Re1 {[%emt 0:31:21]} Re8 {[%emt 0:01:07]} 26. Rxe8+ {[%emt 0:03:29]} Kxe8 {[%emt 0:00:03]} 27. Kd2 {[%emt 0:01:19]} Rxf6 {[%emt 0:01:38]} 28. Ke3 {[%emt 0:00:05]} Rb6 {[%emt 0:06:03]} 29. Nxd5 {[%emt 0:00:47]} Ra6 {[%emt 0:00:30]} 30. Nf5 {[%emt 0:00:30]} Rxa2 {[%emt 0:00:11]} 31. Nf6+ {[%emt 0:00:05]} Kf8 {[%emt 0:03:21]} 32. Nxh7+ {[%emt 0:00:05]} Kg8 {[%emt 0:00:36]} 33. Nxg5 {[%emt 0:00:04]} f6 {[%emt 0:04:48]} 34. Ne4 {[%emt 0:03:08]} Ra3+ {[%emt 0:00:58] Nxf6+ Kh8+ h6 Rb3+} 35. Kf4 {[%emt 0:09:11] Rxb2 Ne7} 1-0

[Event "55th Rubinstein Memorial-C 2019"]
[Site "Polanica-Zdroj"]
[Date "2019.08.21"]
[Round "5.19"]
[White "Maslanka, Wojciech"]
[Black "Zgoda, Damian"]
[Result "0-1"]
[ECO "B06"]
[WhiteElo "1594"]
[BlackElo "1725"]
[Annotator "NA"]
[PlyCount "98"]
[EventDate "2019.08.17"]
[EventType "swiss"]
[EventCountry "POL"]
[SourceTitle "playchess.com"]
[Source "ChessBase"]
[SourceQuality "1"]
[TimeControl "40/5400+30:1800+30"]

1. e4 {[%emt 0:00:00]} g6 {[%emt 0:00:00]} 2. d4 {[%emt 0:00:00]} Bg7 {[%emt 0:00:00]} 3. c3 {[%emt 0:00:07]} d6 {[%emt 0:00:08]} 4. f4 {[%emt 0:00:16]} e6 {[%emt 0:00:55]} 5. Nf3 {[%emt 0:00:20]} Ne7 {[%emt 0:00:16]} 6. Bd3 {[%emt 0:01:19]} Nd7 {[%emt 0:04:57]} 7. O-O {[%emt 0:00:36]} b6 {[%emt 0:01:18]} 8. Qc2 {[%emt 0:01:26]} c5 {[%emt 0:07:43]} 9. Be3 {[%emt 0:03:29]} O-O {[%emt 0:06:20]} 10. Nbd2 {[%emt 0:00:44]} Nf6 {[%emt 0:00:28]} 11. dxc5 {[%emt 0:03:36]} dxc5 {[%emt 0:01:41]} 12. Rad1 {[%emt 0:01:27]} Ng4 {[%emt 0:01:06]} 13. Rfe1 {[%emt 0:06:27]} Qc7 {[%emt 0:03:06]} 14. g3 {[%emt 0:00:36]} Bb7 {[%emt 0:03:28]} 15. h3 {[%emt 0:03:48]} Nxe3 {[%emt 0:00:22]} 16. Rxe3 {[%emt 0:00:05]} Rad8 {[%emt 0:03:42]} 17. Be2 {[%emt 0:03:27]} Nc6 {[%emt 0:03:08]} 18. Nf1 {[%emt 0:06:47]} Rxd1 {[%emt 0:07:30]} 19. Qxd1 {[%emt 0:00:33]} e5 20. f5 {[%emt 0:06:56]} gxf5 {[%emt 0:11:42]} 21. exf5 {[%emt 0:07:58]} Ne7 22. Bd3 {[%emt 0:00:30]} Bh6 {[%emt 0:07:57]} 23. Re1 {[%emt 0:04:15]} c4 {[%emt 0:00:25]} 24. Be4 {[%emt 0:09:03]} f6 {[%emt 0:06:17]} 25. Qa4 {[%emt 0:05:23]} Qc5+ {[%emt 0:02:01]} 26. Kg2 {[%emt 0:01:00]} Bxe4 {[%emt 0:00:24]} 27. Rxe4 {[%emt 0:00:16]} b5 {[%emt 0:00:18]} 28. Qa6 {[%emt 0:01:12]} Qd5 {[%emt 0:04:15]} 29. Rg4+ {[%emt 0:04:15]} Kf7 {[%emt 0:03:25]} 30. Qxa7 {[%emt 0:02:19]} Ra8 {[%emt 0:02:20]} 31. Qf2 {[%emt 0:02:37]} Rxa2 {[%emt 0:00:26]} 32. Kg1 {[%emt 0:01:37]} Nxf5 {[%emt 0:00:47]} 33. Ng5+ {[%emt 0:02:11]} Bxg5 {[%emt 0:02:46]} 34. Qxf5 {[%emt 0:02:54]} Rxb2 {[%emt 0:03:00]} 35. Qxh7+ {[%emt 0:00:13]} Ke6 {[%emt 0:00:28]} 36. Qg8+ {[%emt 0:03:13]} Kd6 {[%emt 0:00:08]} 37. Qd8+ {[%emt 0:00:13]} Ke6 {[%emt 0:01:23]} 38. Qg8+ {[%emt 0:00:30]} Kd6 {[%emt 0:00:08]} 39. Qd8+ {[%emt 0:00:05]} Kc5 {[%emt 0:01:46]} 40. Qc8+ {[%emt 0:01:51]} Qc6 {[%emt 0:00:28]} 41. Qf8+ {[%emt 0:30:12]} Kb6 {[%emt 0:30:21]} 42. Qb8+ {[%emt 0:00:11]} Ka5 {[%emt 0:00:54]} 43. Qa7+ {[%emt 0:00:22]} Qa6 {[%emt 0:00:12]} 44. Qd7 {[%emt 0:01:57]} Qb6+ {[%emt 0:01:38]} 45. Kh1 {[%emt 0:00:10]} Qf2 {[%emt 0:00:59]} 46. Qd8+ {[%emt 0:00:35]} Ka4 {[%emt 0:00:25]} 47. Qd1+ {[%emt 0:01:59]} Ka3 {[%emt 0:01:48]} 48. Qa1+ {[%emt 0:00:52]} Ra2 {[%emt 0:00:16]} 49. Qc1+ {[%emt 0:00:10]} Bxc1 0-1

[Event "55th Rubinstein Memorial-C 2019"]
[Site "Polanica-Zdroj"]
[Date "2019.08.21"]
[Round "5.20"]
[White "Musial, Igor"]
[Black "Suchanek, Paulina"]
[Result "1-0"]
[ECO "C00"]
[WhiteElo "1717"]
[BlackElo "1593"]
[Annotator "NA"]
[PlyCount "67"]
[EventDate "2019.08.17"]
[EventType "swiss"]
[EventCountry "POL"]
[SourceTitle "playchess.com"]
[Source "ChessBase"]
[SourceQuality "1"]
[TimeControl "40/5400+30:1800+30"]

1. e4 {[%emt 0:00:00]} e6 {[%emt 0:15:46]} 2. d3 {[%emt 0:00:06]} d5 {[%emt 0:00:05]} 3. Nd2 {[%emt 0:00:16]} c5 {[%emt 0:00:14]} 4. Ngf3 {[%emt 0:00:12]} Nc6 {[%emt 0:00:46]} 5. g3 {[%emt 0:00:48]} Bd6 {[%emt 0:00:48]} 6. Bg2 {[%emt 0:00:41]} Nge7 {[%emt 0:00:22]} 7. O-O {[%emt 0:00:18]} O-O {[%emt 0:00:06]} 8. Re1 {[%emt 0:00:22]} Qc7 {[%emt 0:00:16]} 9. Qe2 {[%emt 0:06:10]} f6 {[%emt 0:00:39]} 10. Nf1 {[%emt 0:02:34]} Bd7 {[%emt 0:05:03]} 11. h4 {[%emt 0:02:05]} Be8 {[%emt 0:06:43]} 12. c3 {[%emt 0:17:37]} Bf7 {[%emt 0:08:31]} 13. exd5 {[%emt 0:12:59]} Nxd5 {[%emt 0:07:21]} 14. N3d2 {[%emt 0:04:04]} Rae8 {[%emt 0:05:54]} 15. Nh2 {[%emt 0:03:28]} Qe7 {[%emt 0:00:30]} 16. Nc4 {[%emt 0:00:30]} Bb8 {[%emt 0:00:30]} 17. h5 {[%emt 0:00:30]} Qc7 {[%emt 0:00:30]} 18. h6 {[%emt 0:00:30]} Bg6 {[%emt 0:00:30]} 19. Ng4 {[%emt 0:26:12]} Bh5 {[%emt 0:39:59]} 20. hxg7 {[%emt 0:00:27]} Qxg7 {[%emt 0:00:35]} 21. Nh6+ {[%emt 0:00:16]} Qxh6 {[%emt 0:00:38]} 22. Bxh6 {[%emt 0:00:26]} Bxe2 {[%emt 0:00:05]} 23. Rxe2 {[%emt 0:00:24]} Kf7 {[%emt 0:04:15]} 24. Bxf8 {[%emt 0:00:10]} Rxf8 {[%emt 0:00:05]} 25. Rae1 {[%emt 0:00:31]} Nd8 {[%emt 0:00:49]} 26. f4 {[%emt 0:06:36]} Rg8 {[%emt 0:00:25]} 27. Kh2 {[%emt 0:00:43]} Bxf4 {[%emt 0:00:57]} 28. gxf4 {[%emt 0:00:32]} Nxf4 {[%emt 0:00:04]} 29. Rd2 {[%emt 0:00:05]} b6 {[%emt 0:00:50]} 30. Rf1 {[%emt 0:00:27]} e5 {[%emt 0:00:30]} 31. Rxf4 {[%emt 0:05:25]} exf4 {[%emt 0:00:05]} 32. Bd5+ {[%emt 0:00:03]} Ne6 {[%emt 0:00:07]} 33. Re2 {[%emt 0:00:07]} Kg6 {[%emt 0:01:25]} 34. Rg2+ {[%emt 0:00:41]} 1-0

[Event "55th Rubinstein Memorial-C 2019"]
[Site "Polanica-Zdroj"]
[Date "2019.08.21"]
[Round "5.21"]
[White "Krzyzosiak, Anna"]
[Black "Szydelko, Kazimierz"]
[Result "0-1"]
[ECO "B75"]
[WhiteElo "1590"]
[BlackElo "1717"]
[Annotator "NA"]
[PlyCount "74"]
[EventDate "2019.08.17"]
[EventType "swiss"]
[EventCountry "POL"]
[SourceTitle "playchess.com"]
[Source "ChessBase"]
[SourceQuality "1"]
[TimeControl "40/5400+30:1800+30"]

1. e4 {[%emt 0:00:00]} c5 {[%emt 0:00:00]} 2. Nc3 {[%emt 0:00:00]} d6 {[%emt 0:00:47]} 3. Nf3 {[%emt 0:00:13]} g6 {[%emt 0:00:43]} 4. d4 {[%emt 0:01:31]} cxd4 {[%emt 0:00:15]} 5. Nxd4 {[%emt 0:00:17]} Bg7 {[%emt 0:00:17]} 6. Be3 {[%emt 0:02:09]} Nf6 {[%emt 0:00:44]} 7. f3 {[%emt 0:03:32]} a6 {[%emt 0:00:21]} 8. Qd2 {[%emt 0:00:26]} O-O {[%emt 0:04:26]} 9. O-O-O {[%emt 0:01:30]} b5 {[%emt 0:01:35]} 10. g4 {[%emt 0:05:48]} Bb7 {[%emt 0:01:43]} 11. h4 {[%emt 0:01:37]} h5 {[%emt 0:01:24]} 12. g5 {[%emt 0:15:10]} Nh7 {[%emt 0:02:23]} 13. Bd3 {[%emt 0:07:42]} Nd7 {[%emt 0:00:58]} 14. f4 {[%emt 0:01:25]} Rc8 {[%emt 0:09:54]} 15. Rhf1 {[%emt 0:07:58]} e5 16. Nb3 {[%emt 0:10:13]} exf4 {[%emt 0:14:57]} 17. Bxf4 {[%emt 0:00:27]} Ne5 {[%emt 0:00:07]} 18. Nd5 {[%emt 0:08:46]} Bxd5 {[%emt 0:08:55]} 19. exd5 {[%emt 0:00:19]} Nc4 {[%emt 0:03:17]} 20. Bxc4 {[%emt 0:02:28]} bxc4 {[%emt 0:00:47]} 21. Nd4 {[%emt 0:00:40]} c3 {[%emt 0:00:30]} 22. bxc3 {[%emt 0:02:16]} Qa5 {[%emt 0:01:54]} 23. Bxd6 {[%emt 0:03:19]} Qxa2 {[%emt 0:01:50]} 24. Qe3 {[%emt 0:04:18]} Rfe8 {[%emt 0:03:05]} 25. Qf3 {[%emt 0:02:50]} f5 {[%emt 0:12:13]} 26. gxf6 {[%emt 0:04:03]} Bxf6 {[%emt 0:08:42]} 27. Qg3 {[%emt 0:08:09]} Bxd4 {[%emt 0:05:36]} 28. Qxg6+ {[%emt 0:03:54]} Bg7 {[%emt 0:05:36]} 29. Rf7 {[%emt 0:01:18]} Qa1+ {[%emt 0:00:29]} 30. Kd2 {[%emt 0:00:04]} Qxc3+ {[%emt 0:00:09]} 31. Kc1 {[%emt 0:00:08]} Qxc2+ {[%emt 0:03:23]} 32. Qxc2 {[%emt 0:00:09]} Rxc2+ {[%emt 0:00:02]} 33. Kxc2 {[%emt 0:00:07]} Kxf7 {[%emt 0:00:12]} 34. Rf1+ {[%emt 0:00:33]} Nf6 {[%emt 0:00:13]} 35. Ba3 {[%emt 0:01:46]} Re4 {[%emt 0:02:29]} 36. d6 {[%emt 0:01:54]} Ke6 {[%emt 0:01:11]} 37. Rh1 {[%emt 0:00:51]} Bf8 {[%emt 0:01:52]} 0-1

[Event "55th Rubinstein Memorial-C 2019"]
[Site "Polanica-Zdroj"]
[Date "2019.08.21"]
[Round "5.22"]
[White "Burdzicki, Jan"]
[Black "Raczek, Krzysztof"]
[Result "1/2-1/2"]
[ECO "A53"]
[WhiteElo "1716"]
[BlackElo "1587"]
[Annotator "NA"]
[PlyCount "120"]
[EventDate "2019.08.17"]
[EventType "swiss"]
[EventCountry "POL"]
[SourceTitle "playchess.com"]
[Source "ChessBase"]
[SourceQuality "1"]
[TimeControl "40/5400+30:1800+30"]

1. d4 {[%emt 0:03:31]} Nf6 {[%emt 0:00:00]} 2. c4 {[%emt 0:00:12]} d6 {[%emt 0:00:00]} 3. Nc3 {[%emt 0:01:33]} Nbd7 {[%emt 0:00:00]} 4. e4 {[%emt 0:01:40]} e5 {[%emt 0:00:06]} 5. d5 {[%emt 0:01:10]} Nc5 {[%emt 0:00:30]} 6. Bd3 {[%emt 0:06:53]} a5 {[%emt 0:00:14]} 7. Nge2 {[%emt 0:01:10]} g6 {[%emt 0:00:34]} 8. O-O {[%emt 0:01:57]} Bg7 {[%emt 0:02:02]} 9. Ng3 {[%emt 0:01:18]} h5 {[%emt 0:01:11]} 10. Bg5 {[%emt 0:01:33]} h4 {[%emt 0:00:19]} 11. Nge2 {[%emt 0:00:42]} Rh5 {[%emt 0:05:24]} 12. f4 {[%emt 0:08:03]} exf4 {[%emt 0:00:54]} 13. Bxf4 {[%emt 0:00:23]} h3 {[%emt 0:00:18]} 14. g3 {[%emt 0:00:35]} Bg4 {[%emt 0:00:29]} 15. Be3 {[%emt 0:09:38]} Nfd7 {[%emt 0:00:09]} 16. Bc2 {[%emt 0:14:40]} Ne5 {[%emt 0:01:27]} 17. Bxc5 {[%emt 0:06:27]} dxc5 {[%emt 0:00:11]} 18. Ba4+ {[%emt 0:00:48]} Kf8 {[%emt 0:01:48]} 19. Qb3 Nf3+ {[%emt 0:05:37]} 20. Kh1 {[%emt 0:05:30]} Nd2 {[%emt 0:01:48]} 21. Qb5 {[%emt 0:01:15]} Nxf1 {[%emt 0:00:37]} 22. Rxf1 {[%emt 0:00:15]} Bxe2 {[%emt 0:00:52]} 23. Nxe2 {[%emt 0:01:40]} Qe7 {[%emt 0:00:21]} 24. Bc2 {[%emt 0:00:20]} Be5 {[%emt 0:03:59]} 25. Qxb7 Re8 26. Qa6 {[%emt 0:06:40]} Qg5 {[%emt 0:01:50]} 27. Qxa5 {[%emt 0:02:59]} Qe3 {[%emt 0:14:47]} 28. Qe1 {[%emt 0:00:37]} Bxb2 {[%emt 0:00:47]} 29. Nf4 {[%emt 0:03:12]} Qxe1 {[%emt 0:01:20]} 30. Rxe1 {[%emt 0:01:03]} Rh6 {[%emt 0:00:17]} 31. Rf1 {[%emt 0:05:08]} Kg7 {[%emt 0:02:38]} 32. Rb1 {[%emt 0:01:57]} Be5 {[%emt 0:01:10]} 33. Ne2 {[%emt 0:01:49]} Bd6 {[%emt 0:07:05]} 34. Ng1 {[%emt 0:00:52]} Rhh8 {[%emt 0:03:44]} 35. Nf3 {[%emt 0:01:07]} f6 {[%emt 0:00:36]} 36. Kg1 {[%emt 0:01:21]} Rb8 {[%emt 0:00:18]} 37. Rb5 {[%emt 0:01:46]} g5 {[%emt 0:08:05]} 38. a4 {[%emt 0:03:15]} Rb6 {[%emt 0:00:44]} 39. Nd2 {[%emt 0:01:05]} Ra8 {[%emt 0:03:12]} 40. Kf2 {[%emt 0:03:12]} g4 {[%emt 0:03:01]} 41. Rxb6 {[%emt 0:32:21]} cxb6 {[%emt 0:30:12]} 42. Nf1 {[%emt 0:00:14]} Be5 {[%emt 0:00:33]} 43. Ne3 {[%emt 0:00:23]} Bd4 {[%emt 0:08:15]} 44. Ke2 {[%emt 0:00:03]} f5 {[%emt 0:01:26]} 45. Nxf5+ {[%emt 0:00:28]} Kf6 {[%emt 0:00:28]} 46. Nh6 {[%emt 0:00:32]} Kg6 {[%emt 0:12:27]} 47. Nxg4 {[%emt 0:00:23]} Rf8 {[%emt 0:00:42]} 48. Ne3 {[%emt 0:01:30]} Bxe3 {[%emt 0:00:59]} 49. Kxe3 {[%emt 0:00:02]} Kf6 {[%emt 0:00:01]} 50. Bd3 {[%emt 0:01:03]} Ke5 {[%emt 0:00:05]} 51. Be2 {[%emt 0:00:11]} Rf7 {[%emt 0:00:56]} 52. g4 {[%emt 0:00:19]} Rg7 {[%emt 0:00:17]} 53. Bf3 {[%emt 0:00:21]} Rf7 {[%emt 0:00:16]} 54. Be2 {[%emt 0:00:31]} Rf8 {[%emt 0:00:24]} 55. Bf3 {[%emt 0:00:38]} Rf4 {[%emt 0:00:56]} 56. Ke2 {[%emt 0:00:53]} Rf7 {[%emt 0:00:13]} 57. Ke3 {[%emt 0:00:09]} Rg7 {[%emt 0:00:40]} 58. Be2 {[%emt 0:00:13]} Re7 {[%emt 0:00:12]} 59. Bf3 {[%emt 0:00:16]} Ra7 {[%emt 0:00:45]} 60. Bd1 {[%emt 0:00:08]} Rf7 {[%emt 0:00:17]} 1/2-1/2

[Event "55th Rubinstein Memorial-C 2019"]
[Site "Polanica-Zdroj"]
[Date "2019.08.21"]
[Round "5.23"]
[White "Witkowski, Krzysztof"]
[Black "Wolska, Marta"]
[Result "1-0"]
[ECO "B12"]
[WhiteElo "1707"]
[BlackElo "1516"]
[Annotator "NA"]
[PlyCount "55"]
[EventDate "2019.08.17"]
[EventType "swiss"]
[EventCountry "POL"]
[SourceTitle "playchess.com"]
[Source "ChessBase"]
[SourceQuality "1"]
[TimeControl "40/5400+30:1800+30"]

1. e4 c6 2. d4 d5 3. e5 c5 4. dxc5 Nc6 5. Nf3 Bg4 6. Bb5 Qa5+ 7. Nc3 e6 8. Bd2 Qc7 9. O-O Bxc5 10. h3 Bxf3 11. Qxf3 Nge7 12. Rae1 O-O 13. Bd3 Ng6 14. Qg3 Bd4 15. Nb5 Qb6 16. Nxd4 Qxd4 17. Bc3 Qc5 18. a3 a5 19. Bd2 b5 20. h4 d4 21. f4 f5 22. exf6 Rxf6 23. Qh3 Re8 24. f5 Nge5 25. Bg5 Nxd3 26. cxd3 Rff8 27. f6 h6 28. Bxh6 1-0